Workbook

Sheet Calc
E3: GATEWAY COMMERCIAL CAPACITY TEST CALCULATOR V2024.1 | X3: GATEWAY USE ONLY
X4: DEAL No. | AC4: NAME:
E5: Released Date: 4 April 2024
E6: Field Key | G6: Mandatory and must be completed | M6: Optional input fields | P6: Output fields and can't be completed
X7: NO | AF7: NO
C9: LOAN DETAILS | S9: Error: Loan term must be the same as I/O term
D10: Loan | G10: Loan Type | H10: Loan Amount ($) | K10: Term (mths) | M10: Rate % p.a. | N10: Int Only Term | P10: Indicative Payment (mthly)
C12: 1 | P12: =IF(AND(D12<>"",G12<>"",H12<>"",K12<>"",M12<>"",N12<>""),IF(N12>0,M12/12*H12,PMT(M12/12, K12,-H12)),"") ->  | S12: Total New Loans | X12: =IF(SUM(H12:J17)=0,0,SUM(H12:J17)) -> 0 | AC12: Security Value | AF12: 0
C14: 2 | P14: =IF(AND(H14<>"",K14<>"",M14<>""),IF(N14>0,M14/12*H14,PMT(M14/12, K14,-H14)),"") ->  | S14: Existing GBL Loans | X14: 0 | AC14: LVR | AF14: =IF(AF12=0,0,IF(OR(AF9="Family Pledge",AF9="FHLDS"),80%,X16/AF12)) -> 0
C16: 3 | P16: =IF(AND(H16<>"",K16<>"",M16<>""),IF(N16>0,M16/12*H16,PMT(M16/12,K16,-H16)),"") ->  | S16: Total Loans | X16: =SUM(X12,X14) -> 0
C21: CORPORATE INCOME (If applicable)
G22: CORP BORROWER 1 | J22: CORP BORROWER 2 | S22: ANNUAL TOTALS
C23: Average Net Profit after Adjustments | G23: ='Corp Borrower 1'!F18 -> 0 | J23: ='Corp Borrower 2'!F18 -> 0 | S23: =G23+J23 -> 0
C25: PERSONAL INCOME (Annual) | X25: LIVING EXPENSES | AC25: (Individual applicants only)
G26: INDIVIDUAL 1 | J26: INDIVIDUAL 2 | M26: INDIVIDUAL 3 | P26: INDIVIDUAL 4 | S26: ANNUAL TOTALS | X26: =IF(AND(AA28="Partnered",AH28="N/A"),"CHECK STATUS AND PARTNER ENTRY",IF(AND(AA29="Partnered",AH29="N/A"),"CHECK STATUS AND PARTNER ENTRY",IF(AND(AA30="Partnered",AH30="N/A"),"CHECK STATUS AND PARTNER ENTRY",IF(AND(AA31="Parntered",AH31="N/A"),"CHECK STATUS AND PARTNER ENTRY",IF(AND(AH28="App 2",$AH$29<>"App 1"),"CHECK STATUS AND PARTNER ENTRY",IF(AND(AH28="App 3",$AH$30<>"App 1"),"CHECK STATUS AND PARTNER ENTRY",IF(AND(AH28="App 4",$AH$31<>"App 1"),"CHECK STATUS AND PARTNER ENTRY",IF(AND(AH29="App 1",$AH$28<>"App 2"),"CHECK STATUS AND PARTNER ENTRY",IF(AND(AH29="App 3",$AH$30<>"App 2"),"CHECK STATUS AND PARTNER ENTRY",IF(AND(AH29="App 4",$AH$31<>"App 2"),"CHECK STATUS AND PARTNER ENTRY",IF(AND(AH29="App 1",$AH$28<>"App 2"),"CHECK STATUS AND PARTNER ENTRY",IF(AND(AH30="App 1",$AH$28<>"App 3"),"CHECK STATUS AND PARTNER ENTRY",IF(AND(AH30="App 2",$AH$29<>"App 3"),"CHECK STATUS AND PARTNER ENTRY",IF(AND(AH30="App 4",$AH$31<>"App 3"),"CHECK STATUS AND PARTNER ENTRY",IF(AND(AH31="App 1",$AH$28<>"App 4"),"CHECK STATUS AND PARTNER ENTRY",IF(AND(AH31="App 2",$AH$29<>"App 4"),"CHECK STATUS AND PARTNER ENTRY",IF(AND(AH31="App 3",$AH$30<>"App 4"),"CHECK STATUS AND PARTNER ENTRY",""))))))))))))))))) -> 
C27: Full Time/Part Time/Casual | G27: 0 | J27: 0 | M27: 0 | P27: 0 | S27: =G27+J27+M27+P27 -> 0 | AA27: Status | AE27: Dependents | AH27: Partner
C28: Contract Employment | G28: 0 | H28: 1 | J28: 0 | K28: 1 | M28: 0 | N28: 1 | P28: 0 | Q28: 1 | S28: =G28*H28+J28*K28+M28*N28+P28*Q28 -> 0 | X28: Individual 1 | AA28: N/A | AE28: 0 | AH28: N/A
C29: Bonuses/Commission | G29: 0 | H29: 0.8 | J29: 0 | K29: 0.8 | M29: 0 | N29: 0.8 | P29: 0 | Q29: 0.8 | S29: =G29*H29+J29*K29+M29*N29+P29*Q29 -> 0 | X29: Individual 2 | AA29: N/A | AE29: 0 | AH29: N/A
C30: Overtime/Allowances/Other | G30: 0 | H30: 0.8 | J30: 0 | K30: 0.8 | M30: 0 | N30: 0.8 | P30: 0 | Q30: 0.8 | S30: 0 | X30: Individual 3 | AA30: N/A | AE30: 0 | AH30: N/A
D31: Rental Income | G31: =Rental!G20 -> 0 | J31: =Rental!H20 -> 0 | M31: =Rental!I20 -> 0 | P31: =Rental!J20 -> 0 | S31: =G31+J31+M31+P31 -> 0 | X31: Individual 4 | AA31: N/A | AE31: 0 | AH31: N/A
C32: Attributed Business Cash Flow | G32: =SE!H39 -> 0 | J32: =SE!J39 -> 0 | M32: =SE!L39 -> 0 | P32: =SE!N39 -> 0 | S32: 0
C33: Annual Salary from Business | G33: =SE!H37 -> 0 | J33: =SE!J37 -> 0 | M33: =SE!L37 -> 0 | P33: =SE!N37 -> 0 | S33: 0 | X33: Declared Expenses (monthly) | AF33: 0
D34: Plus Non-Taxable Income | G34: 0 | J34: 0 | M34: 0 | P34: 0 | S34: 0
D35: TOTAL INCOME | G35: =G27+(G28*H28)+(G29*H29)+(G30*H30)+G31+G32+G33+G34 -> 0 | J35: =J27+(J28*K28)+(J29*K29)+(J30*K30)+J31+J32+J33+J34 -> 0 | M35: =M27+(M28*N28)+(M29*N29)+(M30*N30)+M31+M32+M33+M34 -> 0 | P35: =P27+(P28*Q28)+(P29*Q29)+(P30*Q30)+P31+P32+P33+P34 -> 0 | S35: =SUM(G35:Q35) -> 0 | X35: Annual Benchmark | AA35: =IF(X26="Check status and partner entry",0,'HEM Table'!O89) -> 0 | AD35: Annual Declared | AG35: =AF33*12 -> 0
C39: CONTINUING COMMITMENTS (Remaining after Settlement) | X39: Expenses Used in Assessment | AG39: =IF(X26="Check status and partner entry",0,'HEM Table'!O91) -> 0
G40: Limit | J40: Remaining P&I Term (months) | M40: Assessment Rate | P40: Payment (monthly) | S40: Sensitised Annual Payments
C41: Home Loan | G41: 0 | J41: 0 | M41: ='Calc Data'!C3 -> 0.08 | P41: 0 | S41: =IFERROR((IF(OR(G41=FALSE,G41=0),0,IF(OR(J41=FALSE,J41=0,P41=FALSE,P41=0),"Missing value",MAX(PMT(M41/12,J41,-G41),P41)*12))),"Missing Value") -> 0 | X41: ASSESSMENT RESULT | AM41: =ROUNDUP(NPER(M41/12,P41,-G41,0,1),0) ->  | AN41: =IFERROR((IF(OR(G41=FALSE,G41=0),0,IF(OR(J41=FALSE,J41=0,P41=FALSE,P41=0),"Missing value",PMT(MAX('Calc Data'!$C$5,M41+'Calc Data'!$C$4)/12,MIN(J41,ROUNDUP(NPER(M41/12,P41,-G41,0,1),0)),-G41))))*12,"Missing Value") -> 0
C42: Home Loan | G42: 0 | J42: 0 | M42: ='Calc Data'!C3 -> 0.08 | P42: 0 | S42: =IFERROR((IF(OR(G42=FALSE,G42=0),0,IF(OR(J42=FALSE,J42=0,P42=FALSE,P42=0),"Missing value",MAX(PMT(M42/12,J42,-G42),P42)*12))),"Missing Value") -> 0 | X42: =IF(OR(S41="Missing Value",S42="Missing Value",S43="Missing Value",S44="Missing Value",S45="Missing Limit",S46="Missing Limit",S49="Missing Limit"),"MISSING VALUES IN COMMITMENTS",IF(AND(OR(ISNUMBER(SEARCH("Equitismart",Calc!D12))),N12<>0),"INT ONLY TERM MUST BE ZERO FOR EQUITISMART",IF(AND(OR(ISNUMBER(SEARCH("Equitismart",Calc!D14))),N14<>0),"INT ONLY TERM MUST BE ZERO FOR EQUITISMART",IF(AND(OR(ISNUMBER(SEARCH("Equitismart",Calc!D16))),N16<>0),"INT ONLY TERM MUST BE ZERO FOR EQUITISMART",IF(P12="","PLEASE ENTER NEW LOAN DETAILS",IF(OR(S54="ERROR",S55="ERROR",S56="ERROR"),"INCORRECT LOAN INFORMATION",IF(AND(AG39=0,S35<>0),"ENTER LIVING EXPENSES","FIELDS COMPLETED"))))))) -> PLEASE ENTER NEW LOAN DETAILS
C43: Commercial Loan | G43: 0 | J43: 0 | M43: ='Calc Data'!C5 -> 0.08 | P43: 0 | S43: =IFERROR((IF(OR(G43=FALSE,G43=0),0,IF(OR(J43=FALSE,J43=0,P43=FALSE,P43=0),"Missing value",MAX(PMT(M43/12,J43,-G43),P43)*12))),"Missing Value") -> 0 | X43: =IFERROR(IF(X42="FIELDS COMPLETED",IF('Calc Data'!C43>='Calc Data'!F43,"SERVICING MET","SERVICING NOT MET")),"") -> FALSE | AD43: DSR | AF43: =IFERROR(IF(X42<>"FIELDS COMPLETED","",'Calc Data'!C43),"") -> 
C44: Commercial Loan | G44: 0 | J44: 0 | M44: ='Calc Data'!C5 -> 0.08 | P44: 0 | S44: =IFERROR((IF(OR(G44=FALSE,G44=0),0,IF(OR(J44=FALSE,J44=0,P44=FALSE,P44=0),"Missing Value",MAX(PMT(M44/12,J44,-G44),P44)*12))),"Missing Value") -> 0
C45: Personal Loan | G45: 0 | J45: 0 | M45: ='Calc Data'!F2+'Calc Data'!C2 -> 0.1459 | P45: 0 | S45: =IFERROR(IF(AND(OR(G45=FALSE,G45=0),OR(P45=TRUE,P45<>0)),"Missing Limit",(MAX(P45,PMT(M45/12,J45,-G45)))*12),0) -> 0 | X45: INDICATIVE MAXIMUM LOAN AMOUNT* | AD45: *The Indicative maximum loan amount is calculated based on product type and residual P&I term of Loan 1.
C46: Car Loan | G46: 0 | J46: 0 | M46: ='Calc Data'!F3+'Calc Data'!C2 -> 0.1004 | P46: 0 | S46: =IFERROR(IF(AND(OR(G46=FALSE,G46=0),OR(P46=TRUE,P46<>0)),"Missing Limit",(MAX(P46,PMT(M46/12,J46,-G46)))*12),0) -> 0
C47: Lease/HP | G47: 0 | P47: 0 | S47: =IFERROR(IF(AND(OR(G47=FALSE,G47=0),OR(P47=TRUE,P47<>0)),"Missing Limit",P47*12),0) -> 0 | X47: =IF(X42<>"FIELDS COMPLETED","",('Calc Data'!C50)) -> 
M48: Rent | P48: 0 | S48: =IFERROR(P48*12,0) -> 0
C49: Other (inc. HECS/HELP) | G49: 0 | P49: 0 | S49: =IFERROR(IF(AND(OR(G49=FALSE,G49=0),OR(P49=TRUE,P49<>0)),"Missing Limit",P49*12),0) -> 0 | X49: Important Information: The assessment result doesn't constitute a loan offer, each deal must still be assessed by an Underwriter. We will constructively assess applications at the margin with strong supporting mitigants. Should you have any doubt, contact your Gateway representative or email loans@gatewaybank.com.au to discuss in more detail.
C50: Total Credit Card/BNPL Limits | G50: 0 | S50: =IF(G50="",0,G50*0.0382*12) -> 0
M51: Monthly LMI Premium | P51: 0 | S51: =IFERROR(P51*12,0) -> 0
P52: Commercial Facilities 1 | S52: ='Corp Borrower 1'!J32 -> 0
P53: Commercial Facilities 2 | S53: ='Corp Borrower 2'!J32 -> 0
P54: GBL New Loan 1 | S54: =IFERROR(IF($P$12="","",IF(AND(OR($D$12="Commercial Plus",$D$12="Commercial Property"),N12=0),PMT(MAX('Calc Data'!$C$5,$M$12+'Calc Data'!$C$4)/12,$K$12,-$H$12)*12,IF(AND(OR($D$12="Commercial Plus",$D$12="Commercial Property"),N12>0),PMT(MAX('Calc Data'!$C$5,$M$12+'Calc Data'!$C$4)/12,240,-$H$12),PMT(MAX('Calc Data'!$C$3,$M$12+'Calc Data'!$C$2)/12,($K$12-$N$12),-$H$12))*12)),"ERROR") -> 
P55: GBL New Loan 2 | S55: =IFERROR(IF($P$14="","",IF(AND(OR($D$14="Commercial Plus",$D$14="Commercial Property"),N14=0),PMT(MAX('Calc Data'!$C$5,$M$14+'Calc Data'!$C$4)/12,$K$14,-$H$14)*12,IF(AND(OR($D$14="Commercial Plus",$D$14="Commercial Property"),N14>0),PMT(MAX('Calc Data'!$C$5,$M$14+'Calc Data'!$C$4)/12,240,-$H$14),PMT(MAX('Calc Data'!$C$3,$M$14+'Calc Data'!$C$2)/12,($K$14-$N$14),-$H$14))*12)),"ERROR") -> 
P56: GBL New Loan 3 | S56: =IFERROR(IF($P$16="","",IF(AND(OR($D$16="Commercial Plus",$D$16="Commercial Property"),N16=0),PMT(MAX('Calc Data'!$C$5,$M$16+'Calc Data'!$C$4)/12,$K$16,-$H$16)*12,IF(AND(OR($D$16="Commercial Plus",$D$16="Commercial Property"),N16>0),PMT(MAX('Calc Data'!$C$5,$M$16+'Calc Data'!$C$4)/12,240,-$H$16),PMT(MAX('Calc Data'!$C$3,$M$16+'Calc Data'!$C$2)/12,($K$16-$N$16),-$H$16))*12)),"ERROR") -> 
M57: Total Sensitised Annual Payments | S57: =IFERROR(SUM(S41:T56),"ERROR") -> 0
AF59: =NOW() -> 2024-04-03T15:05:08.960

Sheet Corp Borrower 1
C3: BUSINESS BORROWER 1
F6: Latest Year | H6: Prior Year
D7: Period Ending
C8: Profit and Loss
C9: Net Profit before Tax/Distributions | F9: 0 | H9: 0 | I9: =IF(OR(H9="",H9=0),"",(F9-H9)/H9) -> 
C10: Addbacks
C11: Interest Expense | F11: 0 | H11: 0 | I11: =IF(OR(H11="",H11=0),"",(F11-H11)/H11) -> 
C12: Financed Leasing Expense | F12: 0 | H12: 0 | I12: =IF(OR(H12="",H12=0),"",(F12-H12)/H12) ->  | AF12: 0
C13: Depreciation/ Amortisation of Intangibles | F13: 0 | H13: 0
C14: Other Addbacks | F14: 0 | H14: 0 | X14: 0
C15: Other Addbacks | F15: 0 | H15: 0
C16: Net Profit after Adjustments | F16: =F9+SUM(F11:F15) -> 0 | H16: =H9+SUM(H11:H15) -> 0
C18: Average Net Profit after Adjustments | F18: =AVERAGE(F16,H16) -> 0
C22: Continuing Business Financial Commitments
D23: Limit | E23: Remaining Term (months) | F23: Assessment Rate | H23: Actual Payment (monthly) | J23: Sensitised Annual Payments
C24: Term Loan (P&I) | D24: 0 | E24: 0 | F24: ='Calc Data'!C5 -> 0.08 | H24: 0 | J24: =IFERROR(MAX($H24,PMT($F24/12,$E24,-$D24))*12,"$0.00") -> $0.00
C25: Term Loan (P&I) | D25: 0 | E25: 0 | F25: ='Calc Data'!C5 -> 0.08 | H25: 0 | J25: =IFERROR(MAX($H25,PMT($F25/12,$E25,-$D25))*12,"$0.00") -> $0.00
C26: Term Loan (I/O) | D26: 0 | F26: ='Calc Data'!C5 -> 0.08 | H26: 0 | J26: =IFERROR(MAX($H26,PMT($F26/12,360,-$D26))*12,"$0.00") -> 0
C27: Line of Credit | D27: 0 | F27: ='Calc Data'!C5 -> 0.08 | G27: 0 | J27: =IFERROR(D27*F27,"$0.00") -> 0
C28: Overdraft | D28: 0 | F28: ='Calc Data'!C5 -> 0.08 | G28: 0 | J28: =IFERROR(D28*F28,"$0.00") -> 0 | AA28: N/A | AE28: 0 | AH28: N/A
C29: Lease/HP | D29: 0 | H29: 0 | J29: =IFERROR(H29*12,"$0.00") -> 0 | AA29: N/A | AE29: 0 | AH29: N/A
C30: Other | D30: 0 | H30: 0 | J30: =IFERROR(H30*12,"$0.00") -> 0 | AA30: N/A | AE30: 0 | AH30: N/A
C31: Credit Cards | D31: 0 | J31: =IF(D31="",0,D31*0.0382*12) -> 0 | AA31: N/A | AE31: 0 | AH31: N/A
H32: Sensitised Totals | J32: =SUM(J24:J31) -> 0
AF33: 0
L34: 3
G41: 0 | J41: 0 | M41: 0 | P41: 0
G42: 0 | J42: 0 | M42: 0 | P42: 0
G43: 0 | J43: 0 | M43: 0 | P43: 0
G44: 0 | J44: 0 | M44: 0 | P44: 0
G45: 0 | P45: 0
G46: 0 | P46: 0
P47: 0
G48: 0 | P48: 0
G49: 0
P50: 0

Sheet Corp Borrower 2
C3: BUSINESS BORROWER 2
F6: Latest Year | H6: Prior Year
D7: Period Ending
C8: Profit and Loss
C9: Net Profit before Tax/Distributions | F9: 0 | H9: 0 | I9: =IF(OR(H9="",H9=0),"",(F9-H9)/H9) -> 
C10: Addbacks
C11: Interest Expense | F11: 0 | H11: 0 | I11: =IF(OR(H11="",H11=0),"",(F11-H11)/H11) -> 
C12: Financed Leasing Expense | F12: 0 | H12: 0
C13: Depreciation/ Amortisation of Intangibles | F13: 0 | H13: 0
C14: Other Addbacks | F14: 0 | H14: 0
C15: Other Addbacks | F15: 0 | H15: 0
C16: Net Profit after Adjustments | F16: =F9+SUM(F11:F15) -> 0 | H16: =H9+SUM(H11:H15) -> 0 | I16: =IF(OR(H16="",H16=0),"",(F16-H16)/H16) -> 
C18: Average Net Profit after Adjustments | F18: =AVERAGE(F16,H16) -> 0
C22: Continuing Business Financial Commitments
D23: Limit | E23: Remaining Term (months) | F23: Assessment Rate | H23: Actual Payment (monthly) | J23: Sensitised Annual Payments
C24: Term Loan (P&I) | D24: 0 | E24: 0 | F24: ='Calc Data'!C5 -> 0.08 | H24: 0 | J24: =IFERROR(MAX($H24,PMT($F24/12,$E24,-$D24))*12,"$0.00") -> $0.00
C25: Term Loan (P&I) | D25: 0 | E25: 0 | F25: ='Calc Data'!C5 -> 0.08 | H25: 0 | J25: =IFERROR(MAX($H25,PMT($F25/12,$E25,-$D25))*12,"$0.00") -> $0.00
C26: Term Loan (I/O) | D26: 0 | F26: ='Calc Data'!C5 -> 0.08 | H26: 0 | J26: =IFERROR(MAX($H26,PMT($F26/12,360,-$D26))*12,"$0.00") -> 0
C27: Line of Credit | D27: 0 | F27: ='Calc Data'!C5 -> 0.08 | G27: 0 | J27: =IFERROR(D27*F27,"$0.00") -> 0
C28: Overdraft | D28: 0 | F28: ='Calc Data'!C5 -> 0.08 | G28: 0 | J28: =IFERROR(D28*F28,"$0.00") -> 0
C29: Lease/HP | D29: 0 | H29: 0 | J29: =IFERROR(H29*12,"$0.00") -> 0
C30: Other | D30: 0 | H30: 0 | J30: =IFERROR(H30*12,"$0.00") -> 0
C31: Credit Cards | D31: 0 | J31: =IF(D31="",0,D31*0.0382*12) -> 0
H32: Sensitised Totals | J32: =SUM(J24:J31) -> 0
L34: 3

Sheet SE
C3: SELF EMPLOYED
F6: Latest Year | H6: Prior Year
D7: Period Ending
C8: Profit and Loss
C9: Net Profit before Tax/Distributions | F9: 0 | H9: 0
C10: Addbacks
C11: Interest Expense | F11: 0 | H11: 0
C12: Financed Leasing Expense | F12: 0 | H12: 0 | AF12: 0
C13: Depreciation/ Amortisation of Intangibles | F13: 0 | H13: 0
C14: Salaries/ Wages paid to owners | F14: 0 | H14: 0 | I14: =IF(OR(H14="",H14=0),"",(F14-H14)/H14) ->  | X14: 0
C15: Other Addbacks | F15: 0 | H15: 0
C16: Other Addbacks | F16: 0 | H16: 0
C17: Business - Cash from Operations | F17: =F9+SUM(F11:F16) -> 0 | G17: 0 | H17: =H9+SUM(H11:H16) -> 0 | I17: =IF(OR(H17="",H17=0),"",(F17-H17)/H17) -> 
C22: Continuing Business Financial Commitments | F22: Personal commitments should be entered on the Calc worksheet
D23: Limit | E23: Remaining Term (months) | F23: Assessment Rate | H23: Actual Payment (monthly) | J23: Sensitised Annual Payments
C24: Term Loan (P&I) | D24: 0 | E24: 0 | F24: ='Calc Data'!C5 -> 0.08 | G24: 0 | H24: 0 | J24: =IFERROR(MAX($H24,PMT($F24/12,$E24,-$D24))*12,"$0.00") -> $0.00
C25: Term Loan (P&I) | D25: 0 | E25: 0 | F25: ='Calc Data'!C5 -> 0.08 | H25: 0 | J25: =IFERROR(MAX($H25,PMT($F25/12,$E25,-$D25))*12,"$0.00") -> $0.00
C26: Term Loan (I/O) | D26: 0 | F26: ='Calc Data'!C5 -> 0.08 | H26: 0 | J26: =IFERROR(MAX($H26,PMT($F26/12,360,-$D26))*12,"$0.00") -> 0
C27: Line of Credit | D27: 0 | F27: ='Calc Data'!C5 -> 0.08 | J27: =IFERROR(D27*F27,"$0.00") -> 0
C28: Overdraft | D28: 0 | F28: ='Calc Data'!C5 -> 0.08 | G28: 0 | J28: =IFERROR(D28*F28,"$0.00") -> 0
C29: Lease/HP | D29: 0 | H29: 0 | J29: =IFERROR(H29*12,"$0.00") -> 0 | AA29: N/A | AE29: 0 | AH29: N/A
C30: Other | D30: 0 | H30: 0 | J30: =IFERROR(H30*12,"$0.00") -> 0 | AA30: N/A | AE30: 0 | AH30: N/A
C31: Credit Cards | D31: 0 | J31: =IF(D31="",0,D31*0.0382*12) -> 0 | AA31: N/A | AE31: 0 | AH31: N/A
H32: Sensitised Totals | J32: =SUM(J24:J31) -> 0 | AA32: N/A | AE32: 0 | AH32: N/A
L33: 3
AF34: 0
C35: Distribution of Business Income | H35: Applicant 1 | J35: Applicant 2 | L35: Applicant 3 | N35: Applicant 4
C36: =IF(AND((H37+J37+L37+N37)<=F37,(H39+J39+L39+N39)<=F39),"Apportion wages/salaries and business cash flow to applicants","APPORTIONED VALUES EXCEED AVAILABLE INCOME") -> Apportion wages/salaries and business cash flow to applicants | F36: Available Income | H36: $ Share of Income | I36: 0 | J36: $ Share of Income | L36: $ Share of Income | N36: $ Share of Income
C37: Adjusted Salaries/Wages paid to owners | F37: =IFERROR(ROUND(AVERAGE(F14,H14),0),0) -> 0
C39: Residual Business Cash Flow for distribution | F39: =IFERROR(ROUND(AVERAGE(F17,H17)-J32-F37,0),0) -> 0
G42: 0 | J42: 0 | M42: 0 | P42: 0
G43: 0 | J43: 0 | M43: 0 | P43: 0
G44: 0 | J44: 0 | M44: 0 | P44: 0
G45: 0 | J45: 0 | M45: 0 | P45: 0
G46: 0 | P46: 0
G47: 0 | P47: 0
P48: 0
G49: 0 | P49: 0
G50: 0
P51: 0

Sheet Rental
D4: RENTAL INCOME & NEGATIVE GEARING CALCULATOR | K4: Ownership Percentage | U4: APP 1 | X4: APP 2 | AA4: APP 3 | AD4: APP 4
E6: Investment Property address | F6: Type | G6: Rental Income | H6: Frequency | I6: Loan Amount | J6: Interest Rate | K6: APP 1 | L6: APP 2 | M6: APP 3 | N6: APP 4 | O6: Total OP% | T6: DR | U6: ARI | V6: Interest | W6: RI | X6: ARI | Y6: Interest | Z6: RI | AA6: ARI | AB6: Interest | AC6: RI | AD6: ARI | AE6: Interest | AF6: RI
D7: Property 1 | H7: Please Select | O7: =IF(SUM(K7:N7)=0,"",SUM(K7:N7)) ->  | T7: =IF(F7="Residential long-term",0.8,IF(F7="Residential short-term",0.7,IF(F7="Commercial",0.7,0))) -> 0 | U7: =IF(O7<>100%,0,IF(H7="Please Select", 0,IF(H7="Weekly",G7*52*K7*T7,IF(H7="Fortnightly",G7*26*K7*T7,IF(H7="Monthly",G7*12*K7*T7,G7*K7*T7))))) -> 0 | V7: =IF(O7<>100%,0,I7*J7*K7) -> 0 | W7: =IF(O7<>100%,0,IF(H7="Please Select", 0,IF(H7="Weekly",G7*52*K7,IF(H7="Fortnightly",G7*26*K7,IF(H7="Monthly",G7*12*K7,G7*K7))))) -> 0 | X7: =IF(O7<>100%,0,IF(H7="Please Select", 0,IF(H7="Weekly",G7*52*L7*T7,IF(H7="Fortnightly",G7*26*L7*T7,IF(H7="Monthly",G7*12*L7*T7,G7*L7*T7))))) -> 0 | Y7: =IF(O7<>100%,0,I7*J7*L7) -> 0 | Z7: =IF(O7<>100%,0,IF(H7="Please Select", 0,IF(H7="Weekly",G7*52*L7,IF(H7="Fortnightly",G7*26*L7,IF(H7="Monthly",G7*12*L7,G7*L7))))) -> 0 | AA7: =IF(O7<>100%,0,IF(H7="Please Select", 0,IF(H7="Weekly",G7*52*M7*T7,IF(H7="Fortnightly",G7*26*M7*T7,IF(H7="Monthly",G7*12*M7*T7,G7*M7*T7))))) -> 0 | AB7: =IF(O7<>100%,0,I7*J7*M7) -> 0 | AC7: =IF(O7<>100%,0,IF(H7="Please Select", 0,IF(H7="Weekly",G7*52*M7,IF(H7="Fortnightly",G7*26*M7,IF(H7="Monthly",G7*12*M7,G7*M7))))) -> 0 | AD7: =IF(O7<>100%,0,IF(H7="Please Select", 0,IF(H7="Weekly",G7*52*N7*T7,IF(H7="Fortnightly",G7*26*N7*T7,IF(H7="Monthly",G7*12*N7*T7,G7*N7*T7))))) -> 0 | AE7: =IF(O7<>100%,0,I7*J7*N7) -> 0 | AF7: =IF(O7<>100%,0,IF(H7="Please Select", 0,IF(H7="Weekly",G7*52*N7,IF(H7="Fortnightly",G7*26*N7,IF(H7="Monthly",G7*12*N7,G7*N7))))) -> 0
D8: Property 2 | H8: Please Select | O8: =IF(SUM(K8:N8)=0,"",SUM(K8:N8)) ->  | T8: =IF(F8="Residential long-term",0.8,IF(F8="Residential short-term",0.7,IF(F8="Commercial",0.7,0))) -> 0 | U8: =IF(O8<>100%,0,IF(H8="Please Select", 0,IF(H8="Weekly",G8*52*K8*T8,IF(H8="Fortnightly",G8*26*K8*T8,IF(H8="Monthly",G8*12*K8*T8,G8*K8*T8))))) -> 0 | V8: =IF(O8<>100%,0,I8*J8*K8) -> 0 | W8: =IF(O8<>100%,0,IF(H8="Please Select", 0,IF(H8="Weekly",G8*52*K8,IF(H8="Fortnightly",G8*26*K8,IF(H8="Monthly",G8*12*K8,G8*K8))))) -> 0 | X8: =IF(O8<>100%,0,IF(H8="Please Select", 0,IF(H8="Weekly",G8*52*L8*T8,IF(H8="Fortnightly",G8*26*L8*T8,IF(H8="Monthly",G8*12*L8*T8,G8*L8*T8))))) -> 0 | Y8: 0 | Z8: 0 | AA8: =IF(O8<>100%,0,IF(H8="Please Select", 0,IF(H8="Weekly",G8*52*M8*T8,IF(H8="Fortnightly",G8*26*M8*T8,IF(H8="Monthly",G8*12*M8*T8,G8*M8*T8))))) -> 0 | AB8: 0 | AC8: 0 | AD8: =IF(O8<>100%,0,IF(H8="Please Select", 0,IF(H8="Weekly",G8*52*N8*T8,IF(H8="Fortnightly",G8*26*N8*T8,IF(H8="Monthly",G8*12*N8*T8,G8*N8*T8))))) -> 0 | AE8: 0 | AF8: 0
D9: Property 3 | H9: Please Select | T9: 0 | U9: 0 | V9: 0 | W9: 0 | X9: 0 | Y9: 0 | Z9: 0 | AA9: 0 | AB9: 0 | AC9: 0 | AD9: 0 | AE9: 0 | AF9: 0
D10: Property 4 | H10: Please Select | T10: 0 | U10: 0 | V10: 0 | W10: 0 | X10: 0 | Y10: 0 | Z10: 0 | AA10: 0 | AB10: 0 | AC10: 0 | AD10: 0 | AE10: 0 | AF10: 0
D11: Property 5 | H11: Please Select | T11: 0 | U11: 0 | V11: 0 | W11: 0 | X11: 0 | Y11: 0 | Z11: 0 | AA11: 0 | AB11: 0 | AC11: 0 | AD11: 0 | AE11: 0 | AF11: 0
D12: Property 6 | H12: Please Select | T12: 0 | U12: 0 | V12: 0 | W12: 0 | X12: 0 | Y12: 0 | Z12: 0 | AA12: 0 | AB12: 0 | AC12: 0 | AD12: 0 | AE12: 0 | AF12: 0
D13: Property 7 | H13: Please Select | T13: 0 | U13: 0 | V13: 0 | W13: 0 | X13: 0 | Y13: 0 | Z13: 0 | AA13: 0 | AB13: 0 | AC13: 0 | AD13: 0 | AE13: 0 | AF13: 0
D14: Property 8 | H14: Please Select | T14: 0 | U14: 0 | V14: 0 | W14: 0 | X14: 0 | Y14: 0 | Z14: 0 | AA14: 0 | AB14: 0 | AC14: 0 | AD14: 0 | AE14: 0 | AF14: 0
D15: Property 9 | H15: Please Select | T15: 0 | U15: 0 | V15: 0 | W15: 0 | X15: 0 | Y15: 0 | Z15: 0 | AA15: 0 | AB15: 0 | AC15: 0 | AD15: 0 | AE15: 0 | AF15: 0
D16: Property 10 | H16: Please Select | T16: 0 | U16: 0 | V16: 0 | W16: 0 | X16: 0 | Y16: 0 | Z16: 0 | AA16: 0 | AB16: 0 | AC16: 0 | AD16: 0 | AE16: 0 | AF16: 0
U17: =SUM(U7:U16) -> 0 | V17: =SUM(V7:V16) -> 0 | W17: =SUM(W7:W16) -> 0 | X17: 0 | Y17: 0 | Z17: 0 | AA17: 0 | AB17: 0 | AC17: 0 | AD17: 0 | AE17: 0 | AF17: 0
G18: APPLICANT 1 | H18: APPLICANT 2 | I18: APPLICANT 3 | J18: APPLICANT 4
E19: Rental Income | G19: =W17 -> 0 | H19: =Z17 -> 0 | I19: =AC17 -> 0 | J19: =AF17 -> 0
E20: Discounted Rental Income | G20: =U17 -> 0 | H20: =X17 -> 0 | I20: =AA17 -> 0 | J20: =AD17 -> 0
E21: Investment Interest | G21: =V17 -> 0 | H21: =Y17 -> 0 | I21: =AB17 -> 0 | J21: =AE17 -> 0

Sheet Calc Data (hidden)
B2: Retail Margin | C2: 0.03 | E2: Variable personal-loan rate | F2: 0.1159
B3: Retail Floor | C3: 0.08 | E3: New car loan rate | F3: 0.0704
B4: Commercial Margin | C4: 0.025
B5: Commercial Floor | C5: 0.08
B7: Loan | C7: Period | F7: Dependents Flags
B8: Commercial Property | C8: Please Select | F8: Applicant 1 | G8: =IF(AND(Calc!AH29="App 1",Calc!AE29>0),1,IF(AND(Calc!AH30="App 1",Calc!AE30>0),1,IF(AND(Calc!AH31="App 1",Calc!AE31>0),1,0))) -> 0
B9: Commercial Plus | C9: Weekly
B10: Premium Package | C10: Fortnightly
B11: Low Rate Essentials | C11: Monthly | F11: Applicant 2 | G11: =IF(AND(Calc!AH28="App 2",Calc!AE28>0),1,IF(AND(Calc!AH30="App 2",Calc!AE30>0),1,IF(AND(Calc!AH31="App 2",Calc!AE31>0),1,0))) -> 0
B12: Standard Variable | C12: Annually | F12: Applicant 3 | G12: =IF(AND(Calc!AH28="App 3",Calc!AE28>0),1,IF(AND(Calc!AH29="App 3",Calc!AE29>0),1,IF(AND(Calc!AH31="App 3",Calc!AE31>0),1,0))) -> 0
B13: Equitismart | F13: Applicant 4 | G13: =IF(AND(Calc!AH28="App 4",Calc!AE28>0),1,IF(AND(Calc!AH29="App 4",Calc!AE29>0),1,IF(AND(Calc!AH30="App 4",Calc!AE30>0),1,0))) -> 0
B14: Construction
B15: Land
B18: 2022-2023
B19: Tax Boundary | C19: Tax Due | D19: Excess %
B20: 0 | C20: 0 | D20: 0
B21: 18200 | C21: 0 | D21: 0.19
B22: 45000 | C22: =C21+(B22-B21)*D21 -> 5092 | D22: 0.325
B23: 120000 | C23: =C22+(B23-B22)*D22 -> 29467 | D23: 0.37
B24: 180000 | C24: =C23+(B24-B23)*D23 -> 51667 | D24: 0.45
B26: APPLICANT 1 | E26: APPLICANT 2 | H26: APPLICANT 3 | K26: APPLICANT 4
B27: ANNUAL INCOME: | C27: =Calc!G35 -> 0 | E27: ANNUAL INCOME: | F27: =Calc!J35 -> 0 | H27: ANNUAL INCOME: | I27: =Calc!M35 -> 0 | K27: ANNUAL INCOME: | L27: =Calc!P35 -> 0
B28: Investment Interest: | C28: =Rental!G21 -> 0 | E28: Investment Interest: | F28: =Rental!H21 -> 0 | H28: Investment Interest: | I28: =Rental!I21 -> 0 | K28: Investment Interest: | L28: =Rental!J21 -> 0
B29: Tax- free income: | C29: =Calc!G34 -> 0 | E29: Tax- free income: | F29: =Calc!J34 -> 0 | H29: Tax- free income: | I29: =Calc!M34 -> 0 | K29: Tax- free income: | L29: =Calc!P34 -> 0
B30: Taxable Income: | C30: =C27-C28-C29 -> 0 | E30: Taxable Income: | F30: =F27-F28-F29 -> 0 | H30: Taxable Income: | I30: =I27-I28-I29 -> 0 | K30: Taxable Income: | L30: =L27-L28-L29 -> 0
B31: Tax Boundary: | C31: =IF(C30<0, 0, VLOOKUP(C30,TaxTable,1)) -> 0 | E31: Tax Boundary: | F31: =IF(F30<0, 0, VLOOKUP(F30,TaxTable,1)) -> 0 | H31: Tax Boundary: | I31: =IF(I30<0, 0, VLOOKUP(I30,TaxTable,1)) -> 0 | K31: Tax Boundary: | L31: =IF(L30<0, 0, VLOOKUP(L30,TaxTable,1)) -> 0
B32: Tax Due on Boundary : | C32: =IF(C30<0, 0, VLOOKUP(C30,TaxTable,2)) -> 0 | E32: Tax Due on Boundary : | F32: =IF(F30<0, 0, VLOOKUP(F30,TaxTable,2)) -> 0 | H32: Tax Due on Boundary : | I32: =IF(I30<0, 0, VLOOKUP(I30,TaxTable,2)) -> 0 | K32: Tax Due on Boundary : | L32: =IF(L30<0, 0, VLOOKUP(L30,TaxTable,2)) -> 0
B33: % Due on Excess : | C33: =IF(C30<0, 0, VLOOKUP(C30,TaxTable,3)) -> 0 | E33: % Due on Excess : | F33: =IF(F30<0, 0, VLOOKUP(F30,TaxTable,3)) -> 0 | H33: % Due on Excess : | I33: =IF(I30<0, 0, VLOOKUP(I30,TaxTable,3)) -> 0 | K33: % Due on Excess : | L33: =IF(L30<0, 0, VLOOKUP(L30,TaxTable,3)) -> 0
B35: TAX DUE ON INCOME : | C35: =C32+(C30-C31)*C33 -> 0 | E35: TAX DUE ON INCOME : | F35: =F32+(F30-F31)*F33 -> 0 | H35: TAX DUE ON INCOME : | I35: =I32+(I30-I31)*I33 -> 0 | K35: TAX DUE ON INCOME : | L35: =L32+(L30-L31)*L33 -> 0
B39: MEDICARE | C39: =IF(C30<=18200,0,C30*2%) -> 0 | E39: MEDICARE | F39: =IF(F30<=18200,0,F30*2%) -> 0 | H39: MEDICARE | I39: =IF(I30<=18200,0,I30*2%) -> 0 | K39: MEDICARE | L39: =IF(L30<=18200,0,L30*2%) -> 0
B40: TAX DUE ON INCOME : | C40: =C35+C39 -> 0 | E40: TAX DUE ON INCOME : | F40: =F35+F39 -> 0 | H40: TAX DUE ON INCOME : | I40: =I35+I39 -> 0 | K40: TAX DUE ON INCOME : | L40: =L35+L39 -> 0
B42: Net Operating Income | C42: =ROUND(Calc!S35+Calc!S23-(C40+F40+I40+L40)-Calc!AG39,2) -> 0
B43: Debt Service Ratio (DSR) | C43: =ROUND(C42/(C45+C46),4) ->  | E43: Minimum DSR | F43: 1.15
B45: Existing Service | C45: =ROUND(SUM(Calc!S41:T53),2) -> 0
B46: New Service | C46: =ROUND(SUM(Calc!S54:T56),2) -> 0
B49: Maximum Service | C49: =ROUND((C42-(F43*C45))/F43,2) -> 0
B50: Maximum Loan Amount | C50: =-PV((Calc!M12+C4)/12,360,C49/12) -> 0

Sheet HEM Table (hidden)
F1: "HEM Table 1" equivalent: by Income Level and Residency | M1: Version | N1: 2023 Q4
H2: BASED ON PREDICTED VALUES FROM THE QUANTILE REGRESSIONS
J3: Smoothed HEM
H5: Total current gross HH income from all sources (measured in current dollars)
E6: 25000 | F6: 25000 | G6: 38000 | H6: 50000 | I6: 63000 | J6: 76000 | K6: 101000 | L6: 126000 | M6: 151000 | N6: 176000 | O6: 202000 | P6: 252000 | Q6: 315000 | R6: 378000
E7: or less | F7: to | G7: to | H7: to | I7: to | J7: to | K7: to | L7: to | M7: to | N7: to | O7: to | P7: to | Q7: to | R7: to
F8: 38000 | G8: 50000 | H8: 63000 | I8: 76000 | J8: 101000 | K8: 126000 | L8: 151000 | M8: 176000 | N8: 202000 | O8: 252000 | P8: 315000 | Q8: 378000 | R8: 630000
D9: Australia
D10: Couple | E10: 0 | F10: 577.3711208 | G10: 592.8024892 | H10: 612.8757023 | I10: 650.8613518 | J10: 710.1736457 | K10: 790.5720149 | L10: 863.7229266 | M10: 952.4027412 | N10: 991.2459665 | O10: 1039.889476 | P10: 1169.536035 | Q10: 1283.802851 | R10: 1350.486358
D11: Couple with 1 child | E11: 0 | F11: 0 | G11: 684.3649342 | H11: 704.4950777 | I11: 742.5884423 | J11: 802.0689359 | K11: 882.6952702 | L11: 956.0536142 | M11: 1044.984971 | N11: 1083.938268 | O11: 1132.719733 | P11: 1262.733928 | Q11: 1377.324768 | R11: 1444.197368
D12: Couple with 2 children | E12: 0 | F12: 0 | G12: 753.4543404 | H12: 773.5489355 | I12: 811.5751279 | J12: 870.9506557 | K12: 951.4348141 | L12: 1024.663748 | M12: 1113.438129 | N12: 1152.322728 | O12: 1201.018194 | P12: 1330.803032 | Q12: 1445.19165 | R12: 1511.946356
D13: Couple with 3 children | E13: 0 | F13: 0 | G13: 0 | H13: 843.7380215 | I13: 881.7295515 | J13: 941.0511318 | K13: 1021.461989 | L13: 1094.624278 | M13: 1183.317926 | N13: 1222.167203 | O13: 1270.818271 | P13: 1400.485027 | Q13: 1514.769645 | R13: 1581.463578
D15: Single person | E15: 293.8449549 | F15: 310.8881899 | G15: 326.2255165 | H15: 346.1764205 | I15: 383.9305774 | J15: 442.8814733 | K15: 522.7899173 | L15: 595.4950762 | M15: 683.634548 | N15: 722.2410041 | O15: 770.5881359 | P15: 899.4447351 | Q15: 1013.015181 | R15: 1079.292419
D16: Single parent with 1 child | E16: 0 | F16: 422.2034061 | G16: 437.6904175 | H16: 457.8360172 | I16: 495.9586202 | J16: 555.4848394 | K16: 636.1731267 | L16: 709.5878304 | M16: 798.5874365 | N16: 837.5706611 | O16: 886.3896599 | P16: 1016.503742 | Q16: 1131.182545 | R16: 1198.106597
D17: Single parent with 2 children | E17: 0 | F17: 524.7895599 | G17: 540.1982507 | H17: 560.2419376 | I17: 598.1716586 | J17: 657.3967183 | K17: 737.6767536 | L17: 810.7200322 | M17: 899.2693833 | N17: 938.0553996 | O17: 986.6274098 | P17: 1116.083209 | Q17: 1230.181821 | R17: 1296.767285
D18: Single parent with 3 children | E18: 0 | F18: 0 | G18: 642.7060839 | H18: 662.6478579 | I18: 700.384697 | J18: 759.3085972 | K18: 839.1803805 | L18: 911.852234 | M18: 999.9513302 | N18: 1038.540138 | O18: 1086.86516 | P18: 1215.662676 | Q18: 1329.181096 | R18: 1395.427973
A20: Extrapolated HEM Table | D20: Income Band | E20: A | F20: B | G20: C | H20: D | I20: E | J20: F | K20: G | L20: H | M20: I | N20: J | O20: K | P20: L | Q20: M | R20: N | S20: O | T20: O | U20: O | V20: O
D21: Income Band Lower | E21: =E8 -> 0 | F21: =F6 -> 25000 | G21: =G6 -> 38000 | H21: 50000 | I21: 63000 | J21: 76000 | K21: 101000 | L21: 126000 | M21: 151000 | N21: 176000 | O21: 202000 | P21: 252000 | Q21: 315000 | R21: 378000 | S21: 1 | T21: 2 | U21: 3 | V21: 4
D22: Income Band Upper | E22: =E6 -> 25000 | F22: =F8 -> 38000 | G22: =G8 -> 50000 | H22: 63000 | I22: 76000 | J22: 101000 | K22: 126000 | L22: 151000 | M22: 176000 | N22: 202000 | O22: 252000 | P22: 315000 | Q22: 378000 | R22: 630000 | S22: =H83 -> 0 | T22: =H84 -> 0 | U22: =H85 -> 0 | V22: =H86 -> 0
A23: Applicants | B23: Dependents | C23: App/Dep ID
A24: 2 | B24: 0 | C24: =A24&B24 -> 20 | D24: Couple | E24: =ROUNDUP(IF(E10>0,E10,F24),0) -> 578 | F24: =ROUNDUP(IF(F10>0,F10,G24),0) -> 578 | G24: 593 | H24: 613 | I24: 651 | J24: 711 | K24: 791 | L24: 864 | M24: 953 | N24: 992 | O24: 1040 | P24: 1170 | Q24: 1284 | R24: 1351 | S24: =ROUNDUP((S$22/AVERAGE($R$22,$R$21))*($R24-$Q24)+$Q24,0) -> 1284 | T24: =ROUNDUP((T$22/AVERAGE($R$22,$R$21))*($R24-$Q24)+$Q24,0) -> 1284 | U24: =ROUNDUP((U$22/AVERAGE($R$22,$R$21))*($R24-$Q24)+$Q24,0) -> 1284 | V24: =ROUNDUP((V$22/AVERAGE($R$22,$R$21))*($R24-$Q24)+$Q24,0) -> 1284
A25: 2 | B25: 1 | C25: =A25&B25 -> 21 | D25: Couple with 1 child | E25: =ROUNDUP(IF(E11>0,E11,F25),0) -> 685 | F25: 685 | G25: 685 | H25: 705 | I25: 743 | J25: 803 | K25: 883 | L25: 957 | M25: 1045 | N25: 1084 | O25: 1133 | P25: 1263 | Q25: 1378 | R25: 1445 | S25: =ROUNDUP((S$22/AVERAGE($R$22,$R$21))*($R25-$Q25)+$Q25,0) -> 1378 | T25: 1378 | U25: 1378 | V25: 1378
A26: 2 | B26: 2 | C26: =A26&B26 -> 22 | D26: Couple with 2 children | E26: 754 | F26: 754 | G26: 754 | H26: 774 | I26: 812 | J26: 871 | K26: 952 | L26: 1025 | M26: 1114 | N26: 1153 | O26: 1202 | P26: 1331 | Q26: 1446 | R26: 1512 | S26: 1446 | T26: 1446 | U26: 1446 | V26: 1446
A27: 2 | B27: 3 | C27: =A27&B27 -> 23 | D27: Couple with 3 children | E27: 844 | F27: 844 | G27: 844 | H27: 844 | I27: 882 | J27: 942 | K27: 1022 | L27: 1095 | M27: 1184 | N27: 1223 | O27: 1271 | P27: 1401 | Q27: 1515 | R27: 1582 | S27: 1515 | T27: 1515 | U27: 1515 | V27: 1515
A28: 2 | B28: 4 | C28: =A28&B28 -> 24 | D28: Couple with 4 children | E28: =E$27+(E$27-E$26)*($B28-$B$27) -> 934 | F28: =F$27+(F$27-F$26)*($B28-$B$27) -> 934 | G28: 934 | H28: 914 | I28: 952 | J28: 1013 | K28: 1092 | L28: 1165 | M28: 1254 | N28: 1293 | O28: 1340 | P28: 1471 | Q28: 1584 | R28: 1652 | S28: 1584 | T28: 1584 | U28: 1584 | V28: 1584
A29: 2 | B29: 5 | C29: 25 | D29: Couple with 5 children | E29: =E$27+(E$27-E$26)*($B29-$B$27) -> 1024 | F29: 1024 | G29: 1024 | H29: 984 | I29: 1022 | J29: 1084 | K29: 1162 | L29: 1235 | M29: 1324 | N29: 1363 | O29: 1409 | P29: 1541 | Q29: 1653 | R29: 1722 | S29: 1653 | T29: 1653 | U29: 1653 | V29: 1653
A30: 2 | B30: 6 | C30: 26 | D30: Couple with 6 children | E30: 1114 | F30: 1114 | G30: 1114 | H30: 1054 | I30: 1092 | J30: 1155 | K30: 1232 | L30: 1305 | M30: 1394 | N30: 1433 | O30: 1478 | P30: 1611 | Q30: 1722 | R30: 1792 | S30: 1722 | T30: 1722 | U30: 1722 | V30: 1722
A31: 2 | B31: 7 | C31: 27 | D31: Couple with 7 children | E31: 1204 | F31: 1204 | G31: 1204 | H31: 1124 | I31: 1162 | J31: 1226 | K31: 1302 | L31: 1375 | M31: 1464 | N31: 1503 | O31: 1547 | P31: 1681 | Q31: 1791 | R31: 1862 | S31: 1791 | T31: 1791 | U31: 1791 | V31: 1791
A32: 2 | B32: 8 | C32: 28 | D32: Couple with 8 children | E32: 1294 | F32: 1294 | G32: 1294 | H32: 1194 | I32: 1232 | J32: 1297 | K32: 1372 | L32: 1445 | M32: 1534 | N32: 1573 | O32: 1616 | P32: 1751 | Q32: 1860 | R32: 1932 | S32: 1860 | T32: 1860 | U32: 1860 | V32: 1860
A33: 2 | B33: 9 | C33: 29 | D33: Couple with 9 children | E33: 1384 | F33: 1384 | G33: 1384 | H33: 1264 | I33: 1302 | J33: 1368 | K33: 1442 | L33: 1515 | M33: 1604 | N33: 1643 | O33: 1685 | P33: 1821 | Q33: 1929 | R33: 2002 | S33: 1929 | T33: 1929 | U33: 1929 | V33: 1929
A34: 2 | B34: 10 | C34: 210 | D34: Couple with 10 children | E34: 1474 | F34: 1474 | G34: 1474 | H34: 1334 | I34: 1372 | J34: 1439 | K34: 1512 | L34: 1585 | M34: 1674 | N34: 1713 | O34: 1754 | P34: 1891 | Q34: 1998 | R34: 2072 | S34: 1998 | T34: 1998 | U34: 1998 | V34: 1998
A36: 1 | B36: 0 | C36: =A36&B36 -> 10 | D36: Single person | E36: =ROUNDUP(IF(E15>0,E15,F36),0) -> 294 | F36: =ROUNDUP(IF(F15>0,F15,G36),0) -> 311 | G36: 327 | H36: 347 | I36: 384 | J36: 443 | K36: 523 | L36: 596 | M36: 684 | N36: 723 | O36: 771 | P36: 900 | Q36: 1014 | R36: 1080 | S36: =ROUNDUP(S$22/AVERAGE($R$22,$R$21)*($R36-$Q36)+$Q36,0) -> 1014 | T36: =ROUNDUP(T$22/AVERAGE($R$22,$R$21)*($R36-$Q36)+$Q36,0) -> 1014 | U36: =ROUNDUP(U$22/AVERAGE($R$22,$R$21)*($R36-$Q36)+$Q36,0) -> 1014 | V36: =ROUNDUP(V$22/AVERAGE($R$22,$R$21)*($R36-$Q36)+$Q36,0) -> 1014
A37: 1 | B37: 1 | C37: =A37&B37 -> 11 | D37: Single parent with 1 child | E37: =ROUNDUP(IF(E16>0,E16,F37),0) -> 423 | F37: 423 | G37: 438 | H37: 458 | I37: 496 | J37: 556 | K37: 637 | L37: 710 | M37: 799 | N37: 838 | O37: 887 | P37: 1017 | Q37: 1132 | R37: 1199 | S37: =ROUNDUP(S$22/AVERAGE($R$22,$R$21)*($R37-$Q37)+$Q37,0) -> 1132 | T37: 1132 | U37: 1132 | V37: 1132
A38: 1 | B38: 2 | C38: =A38&B38 -> 12 | D38: Single parent with 2 children | E38: 525 | F38: 525 | G38: 541 | H38: 561 | I38: 599 | J38: 658 | K38: 738 | L38: 811 | M38: 900 | N38: 939 | O38: 987 | P38: 1117 | Q38: 1231 | R38: 1297 | S38: 1231 | T38: 1231 | U38: 1231 | V38: 1231
A39: 1 | B39: 3 | C39: =A39&B39 -> 13 | D39: Single parent with 3 children | E39: 643 | F39: 643 | G39: 643 | H39: 663 | I39: 701 | J39: 760 | K39: 840 | L39: 912 | M39: 1000 | N39: 1039 | O39: 1087 | P39: 1216 | Q39: 1330 | R39: 1396 | S39: 1330 | T39: 1330 | U39: 1330 | V39: 1330
A40: 1 | B40: 4 | C40: =A40&B40 -> 14 | D40: Single Parent with 4 children | E40: =E$39+(E$39-E$38)*($B40-$B$27) -> 761 | F40: =F$39+(F$39-F$38)*($B40-$B$27) -> 761 | G40: 745 | H40: 765 | I40: 803 | J40: 862 | K40: 942 | L40: 1013 | M40: 1100 | N40: 1139 | O40: 1187 | P40: 1315 | Q40: 1429 | R40: 1495 | S40: 1429 | T40: 1429 | U40: 1429 | V40: 1429
A41: 1 | B41: 5 | C41: 15 | D41: Single Parent with 5 children | E41: =E$39+(E$39-E$38)*($B41-$B$27) -> 879 | F41: 879 | G41: 847 | H41: 867 | I41: 905 | J41: 964 | K41: 1044 | L41: 1114 | M41: 1200 | N41: 1239 | O41: 1287 | P41: 1414 | Q41: 1528 | R41: 1594 | S41: 1528 | T41: 1528 | U41: 1528 | V41: 1528
A42: 1 | B42: 6 | C42: 16 | D42: Single Parent with 6 children | E42: 997 | F42: 997 | G42: 949 | H42: 969 | I42: 1007 | J42: 1066 | K42: 1146 | L42: 1215 | M42: 1300 | N42: 1339 | O42: 1387 | P42: 1513 | Q42: 1627 | R42: 1693 | S42: 1627 | T42: 1627 | U42: 1627 | V42: 1627
A43: 1 | B43: 7 | C43: 17 | D43: Single Parent with 7 children | E43: 1115 | F43: 1115 | G43: 1051 | H43: 1071 | I43: 1109 | J43: 1168 | K43: 1248 | L43: 1316 | M43: 1400 | N43: 1439 | O43: 1487 | P43: 1612 | Q43: 1726 | R43: 1792 | S43: 1726 | T43: 1726 | U43: 1726 | V43: 1726
A44: 1 | B44: 8 | C44: 18 | D44: Single Parent with 8 children | E44: 1233 | F44: 1233 | G44: 1153 | H44: 1173 | I44: 1211 | J44: 1270 | K44: 1350 | L44: 1417 | M44: 1500 | N44: 1539 | O44: 1587 | P44: 1711 | Q44: 1825 | R44: 1891 | S44: 1825 | T44: 1825 | U44: 1825 | V44: 1825
A45: 1 | B45: 9 | C45: 19 | D45: Single Parent with 9 children | E45: 1351 | F45: 1351 | G45: 1255 | H45: 1275 | I45: 1313 | J45: 1372 | K45: 1452 | L45: 1518 | M45: 1600 | N45: 1639 | O45: 1687 | P45: 1810 | Q45: 1924 | R45: 1990 | S45: 1924 | T45: 1924 | U45: 1924 | V45: 1924
A46: 1 | B46: 10 | C46: 110 | D46: Single Parent with 10 children | E46: 1469 | F46: 1469 | G46: 1357 | H46: 1377 | I46: 1415 | J46: 1474 | K46: 1554 | L46: 1619 | M46: 1700 | N46: 1739 | O46: 1787 | P46: 1909 | Q46: 2023 | R46: 2089 | S46: 2023 | T46: 2023 | U46: 2023 | V46: 2023
D50: Relationship Status
D51: Applicant | E51: Status | F51: Dependents | G51: Partner
D52: Individual 1 | E52: =INDEX(Calc!$AA$28:$AI$31,MATCH($D52,Calc!$X$28:$X$31,0),MATCH(E$51,Calc!$AA$27:$AI$27,0)) -> N/A | F52: =INDEX(Calc!$AA$28:$AI$31,MATCH($D52,Calc!$X$28:$X$31,0),MATCH(F$51,Calc!$AA$27:$AI$27,0)) -> 0 | G52: =INDEX(Calc!$AA$28:$AI$31,MATCH($D52,Calc!$X$28:$X$31,0),MATCH(G$51,Calc!$AA$27:$AI$27,0)) -> N/A
D53: Individual 2 | E53: =INDEX(Calc!$AA$28:$AI$31,MATCH($D53,Calc!$X$28:$X$31,0),MATCH(E$51,Calc!$AA$27:$AI$27,0)) -> N/A | F53: =INDEX(Calc!$AA$28:$AI$31,MATCH($D53,Calc!$X$28:$X$31,0),MATCH(F$51,Calc!$AA$27:$AI$27,0)) -> 0 | G53: =INDEX(Calc!$AA$28:$AI$31,MATCH($D53,Calc!$X$28:$X$31,0),MATCH(G$51,Calc!$AA$27:$AI$27,0)) -> N/A
D54: Individual 3 | E54: =INDEX(Calc!$AA$28:$AI$31,MATCH($D54,Calc!$X$28:$X$31,0),MATCH(E$51,Calc!$AA$27:$AI$27,0)) -> N/A | F54: =INDEX(Calc!$AA$28:$AI$31,MATCH($D54,Calc!$X$28:$X$31,0),MATCH(F$51,Calc!$AA$27:$AI$27,0)) -> 0 | G54: =INDEX(Calc!$AA$28:$AI$31,MATCH($D54,Calc!$X$28:$X$31,0),MATCH(G$51,Calc!$AA$27:$AI$27,0)) -> N/A
D55: Individual 4 | E55: =INDEX(Calc!$AA$28:$AI$31,MATCH($D55,Calc!$X$28:$X$31,0),MATCH(E$51,Calc!$AA$27:$AI$27,0)) -> N/A | F55: =INDEX(Calc!$AA$28:$AI$31,MATCH($D55,Calc!$X$28:$X$31,0),MATCH(F$51,Calc!$AA$27:$AI$27,0)) -> 0 | G55: =INDEX(Calc!$AA$28:$AI$31,MATCH($D55,Calc!$X$28:$X$31,0),MATCH(G$51,Calc!$AA$27:$AI$27,0)) -> N/A
D57: Income Band Calculation
D58: Income Band Lower | E58: Income Band Upper | F58: Income Band
D59: =E21 -> 0 | E59: =E22 -> 25000 | F59: A
D60: =E59+1 -> 25001 | E60: =OFFSET($E$22,0,ROW(2:2)-1) -> 38000 | F60: B
D61: 38001 | E61: =OFFSET($E$22,0,ROW(3:3)-1) -> 50000 | F61: C
D62: 50001 | E62: =OFFSET($E$22,0,ROW(4:4)-1) -> 63000 | F62: D
D63: 63001 | E63: =OFFSET($E$22,0,ROW(5:5)-1) -> 76000 | F63: E
D64: 76001 | E64: =OFFSET($E$22,0,ROW(6:6)-1) -> 101000 | F64: F
D65: 101001 | E65: =OFFSET($E$22,0,ROW(7:7)-1) -> 126000 | F65: G
D66: 126001 | E66: =OFFSET($E$22,0,ROW(8:8)-1) -> 151000 | F66: H
D67: 151001 | E67: =OFFSET($E$22,0,ROW(9:9)-1) -> 176000 | F67: I
D68: 176001 | E68: =OFFSET($E$22,0,ROW(10:10)-1) -> 202000 | F68: J
D69: 202001 | E69: =OFFSET($E$22,0,ROW(11:11)-1) -> 252000 | F69: K
D70: 252001 | E70: =OFFSET($E$22,0,ROW(12:12)-1) -> 315000 | F70: L
D71: 315001 | E71: =OFFSET($E$22,0,ROW(13:13)-1) -> 378000 | F71: M
D72: 378001 | E72: =OFFSET($E$22,0,ROW(14:14)-1) -> 630000 | F72: N
D73: 630001 | F73: O
D75: Group ID Matrix | E75: Individual 1 | F75: Individual 2 | G75: Individual 3 | H75: Individual 4 | I75: 0 | J75: Non Applicant
D76: Individual 1 | E76: 0 | F76: 1 | G76: 1 | H76: 1 | I76: 2 | J76: 3
D77: Individual 2 | E77: 1 | F77: 0 | G77: 4 | H77: 4 | I77: 5 | J77: 6
D78: Individual 3 | E78: 1 | F78: 4 | G78: 0 | H78: 7 | I78: 8 | J78: 9
D79: Individual 4 | E79: 1 | F79: 4 | G79: 7 | H79: 0 | I79: 10 | J79: 11
D81: HEM Calculation
D82: Applicant Short | E82: Applicant Long | F82: Partner | G82: Income | H82: Grouped Income | I82: Income Band | J82: Applicants | K82: Dependents | L82: Grouped Dependents | M82: App/Dep ID | N82: Group ID | O82: HEM
D83: 1 | E83: Individual 1 | F83: =IF(OR(G52=0,G52="N/A"),0,IF(G52="Non App","Non Applicant","Individual "&RIGHT(G52,1))) -> 0 | G83: =Calc!G35 -> 0 | H83: =SUMIFS($G$83:$G$86,$E$83:$E$86,E83)+SUMIFS($G$83:$G$86,$F$83:$F$86,E83) -> 0 | I83: =IF(AND(H83>=$D$59,H83<=$E$59),$F$59,IF(AND(H83>=$D$60,H83<=$E$60),$F$60,IF(AND(H83>=$D$61,H83<=$E$61),$F$61,IF(AND(H83>=$D$62,H83<=$E$62),$F$62,IF(AND(H83>=$D$63,H83<=$E$63),$F$63,IF(AND(H83>=$D$64,H83<=$E$64),$F$64,IF(AND(H83>=$D$65,H83<=$E$65),$F$65,IF(AND(H83>=$D$66,H83<=$E$66),$F$66,IF(AND(H83>=$D$67,H83<=$E$67),$F$67,IF(AND(H83>=$D$68,H83<=$E$68),$F$68,IF(AND(H83>=$D$69,H83<=$E$69),$F$69,IF(AND(H83>=$D$70,H83<=$E$70),$F$70,IF(AND(H83>=$D$71,H83<=$E$71),$F$71,IF(AND(H83>=$D$72,H83<=$E$72),$F$72,IF(H83>=$D$73,$F$73))))))))))))))) -> A | J83: =IF(OR(E52="N/A",E52=0),0,IF(F83=0,1,2)) -> 0 | K83: =Calc!AE28 -> 0 | L83: =SUMIF($E$83:$E$86,E83,$K$83:$K$86)+SUMIF($F$83:$F$86,E83,$K$83:$K$86) -> 0 | M83: =J83&L83 -> 00 | N83: =SUMPRODUCT(($E$76:$J$79)*($E$75:$J$75=F83)*($D$76:$D$79=E83)) -> 2 | O83: =IF(I83="O",SUMPRODUCT(($S$24:$V$46)*($S$21:$V$21=D83)*($C$24:$C$46=M83))/COUNTIF($N$83:$N$86,N83),SUMPRODUCT(($E$24:$R$46)*($E$20:$R$20=I83)*($C$24:$C$46=M83))/COUNTIF($N$83:$N$86,N83)) -> 0
D84: 2 | E84: Individual 2 | F84: =IF(OR(G53="N/A",G53=0),0,IF(G53="Non App","Non Applicant","Individual "&RIGHT(G53,1))) -> 0 | G84: =Calc!J35 -> 0 | H84: =SUMIFS($G$83:$G$86,$E$83:$E$86,E84)+SUMIFS($G$83:$G$86,$F$83:$F$86,E84) -> 0 | I84: =IF(AND(H84>=$D$59,H84<=$E$59),$F$59,IF(AND(H84>=$D$60,H84<=$E$60),$F$60,IF(AND(H84>=$D$61,H84<=$E$61),$F$61,IF(AND(H84>=$D$62,H84<=$E$62),$F$62,IF(AND(H84>=$D$63,H84<=$E$63),$F$63,IF(AND(H84>=$D$64,H84<=$E$64),$F$64,IF(AND(H84>=$D$65,H84<=$E$65),$F$65,IF(AND(H84>=$D$66,H84<=$E$66),$F$66,IF(AND(H84>=$D$67,H84<=$E$67),$F$67,IF(AND(H84>=$D$68,H84<=$E$68),$F$68,IF(AND(H84>=$D$69,H84<=$E$69),$F$69,IF(AND(H84>=$D$70,H84<=$E$70),$F$70,IF(AND(H84>=$D$71,H84<=$E$71),$F$71,IF(AND(H84>=$D$72,H84<=$E$72),$F$72,IF(H84>=$D$73,$F$73))))))))))))))) -> A | J84: =IF(OR(E53="N/A",E53=0),0,IF(F84=0,1,2)) -> 0 | K84: =Calc!AE29 -> 0 | L84: =SUMIF($E$83:$E$86,E84,$K$83:$K$86)+SUMIF($F$83:$F$86,E84,$K$83:$K$86) -> 0 | M84: =J84&L84 -> 00 | N84: =SUMPRODUCT(($E$76:$J$79)*($E$75:$J$75=F84)*($D$76:$D$79=E84)) -> 5 | O84: =IF(I84="O",SUMPRODUCT(($S$24:$V$46)*($S$21:$V$21=D84)*($C$24:$C$46=M84))/COUNTIF($N$83:$N$86,N84),SUMPRODUCT(($E$24:$R$46)*($E$20:$R$20=I84)*($C$24:$C$46=M84))/COUNTIF($N$83:$N$86,N84)) -> 0
D85: 3 | E85: Individual 3 | F85: =IF(OR(G54="N/A",G54=0),0,IF(G54="Non App","Non Applicant","Individual "&RIGHT(G54,1))) -> 0 | G85: =Calc!M35 -> 0 | H85: =SUMIFS($G$83:$G$86,$E$83:$E$86,E85)+SUMIFS($G$83:$G$86,$F$83:$F$86,E85) -> 0 | I85: =IF(AND(H85>=$D$59,H85<=$E$59),$F$59,IF(AND(H85>=$D$60,H85<=$E$60),$F$60,IF(AND(H85>=$D$61,H85<=$E$61),$F$61,IF(AND(H85>=$D$62,H85<=$E$62),$F$62,IF(AND(H85>=$D$63,H85<=$E$63),$F$63,IF(AND(H85>=$D$64,H85<=$E$64),$F$64,IF(AND(H85>=$D$65,H85<=$E$65),$F$65,IF(AND(H85>=$D$66,H85<=$E$66),$F$66,IF(AND(H85>=$D$67,H85<=$E$67),$F$67,IF(AND(H85>=$D$68,H85<=$E$68),$F$68,IF(AND(H85>=$D$69,H85<=$E$69),$F$69,IF(AND(H85>=$D$70,H85<=$E$70),$F$70,IF(AND(H85>=$D$71,H85<=$E$71),$F$71,IF(AND(H85>=$D$72,H85<=$E$72),$F$72,IF(H85>=$D$73,$F$73))))))))))))))) -> A | J85: 0 | K85: =Calc!AE30 -> 0 | L85: 0 | M85: 00 | N85: =SUMPRODUCT(($E$76:$J$79)*($E$75:$J$75=F85)*($D$76:$D$79=E85)) -> 8 | O85: =IF(I85="O",SUMPRODUCT(($S$24:$V$46)*($S$21:$V$21=D85)*($C$24:$C$46=M85))/COUNTIF($N$83:$N$86,N85),SUMPRODUCT(($E$24:$R$46)*($E$20:$R$20=I85)*($C$24:$C$46=M85))/COUNTIF($N$83:$N$86,N85)) -> 0
D86: 4 | E86: Individual 4 | F86: =IF(OR(G55="N/A",G55=0),0,IF(G55="Non App","Non Applicant","Individual "&RIGHT(G55,1))) -> 0 | G86: =Calc!P35 -> 0 | H86: =SUMIFS($G$83:$G$86,$E$83:$E$86,E86)+SUMIFS($G$83:$G$86,$F$83:$F$86,E86) -> 0 | I86: =IF(AND(H86>=$D$59,H86<=$E$59),$F$59,IF(AND(H86>=$D$60,H86<=$E$60),$F$60,IF(AND(H86>=$D$61,H86<=$E$61),$F$61,IF(AND(H86>=$D$62,H86<=$E$62),$F$62,IF(AND(H86>=$D$63,H86<=$E$63),$F$63,IF(AND(H86>=$D$64,H86<=$E$64),$F$64,IF(AND(H86>=$D$65,H86<=$E$65),$F$65,IF(AND(H86>=$D$66,H86<=$E$66),$F$66,IF(AND(H86>=$D$67,H86<=$E$67),$F$67,IF(AND(H86>=$D$68,H86<=$E$68),$F$68,IF(AND(H86>=$D$69,H86<=$E$69),$F$69,IF(AND(H86>=$D$70,H86<=$E$70),$F$70,IF(AND(H86>=$D$71,H86<=$E$71),$F$71,IF(AND(H86>=$D$72,H86<=$E$72),$F$72,IF(H86>=$D$73,$F$73))))))))))))))) -> A | J86: 0 | K86: =Calc!AE31 -> 0 | L86: 0 | M86: 00 | N86: =SUMPRODUCT(($E$76:$J$79)*($E$75:$J$75=F86)*($D$76:$D$79=E86)) -> 10 | O86: =IF(I86="O",SUMPRODUCT(($S$24:$V$46)*($S$21:$V$21=D86)*($C$24:$C$46=M86))/COUNTIF($N$83:$N$86,N86),SUMPRODUCT(($E$24:$R$46)*($E$20:$R$20=I86)*($C$24:$C$46=M86))/COUNTIF($N$83:$N$86,N86)) -> 0
O87: =SUM(O83:O86) -> 0
N89: Annual Benchmark | O89: =O87*52 -> 0
N90: Annual Declared | O90: =Calc!AG35 -> 0
N91: Max | O91: =MAX(O89:O90) -> 0

Sheet Instructions
C3: Capacity Test Calculator User Guide
C42: 1. MANDATORY FIELDS: All mandatory fields must be completed; Loan details, Security Value, Base Income. Living expenses is mandatory when application has exposure to individuals. Location Tool is mandatory when application involves purchase of residential property. An Assessment Result and Indicative Maximum Loan Amount will not display unless all mandatory fields are completed.
C43: 2. CORPORATE APPLICANT 1 & 2 INCOME: Use the Corp Borrower worksheets to enter details related to business income (if applicable)
C46: 3. PERSONAL INCOME : Enter annual income for any individuals providing financial support for the loan (if applicable). Enter less stable forms of income after discount is applied, typically 80%.
C48: 4. RENTAL INCOME : Use the Rental worksheet to enter in the details of rental properties in individual names (if applicable)
C49: The Ownership percentage must be entered against each property listed and total 100% otherwise no rental income will be included for that property.
C60: The total Rental Income* and Investment Interest per applicant will display at the bottom of the worksheet. Rental Income will also be carried over to the Calculator worksheet.
C61: Interest applicable to investment loans is used in calculating taxable income and therefore tax payable.
C62: *Rental income is discounted to 70% or 80% depending on property type.
C70: 5. SELF EMPLOYED INCOME : Business income derived from a business which is not party to the transaction. The income is adjusted for addbacks, ongoing lending commitments and tax.
C73: Continuing Financial Commitments: Only applicable to contractual commitments in the name of the business. Personal commitments must be entered on the Calc worksheet.
G74: Enter interest/lease expense as addbacks. Commitments are assessed using the larger of repayments calculated using Gateway's qualifying rate or actual payments
C76: Distribution of Business Income: Available income (salaries/wages and residual cash flow) must be allocated to the relevant applicants.
C78: 8. EXISTING MORTGAGES AND COMMITMENTS : Continuing mortgage commitments are assessed at the larger of repayments calculated based on Gateway's qualifying rate or actual repayments.
C79: Please enter current loan limit, remaining term and actual repayments. Other commitments are calculated based on actual repayment amount. Please enter current limit and repayment amount.
C81: 7. LIVING EXPENSES : Select the relationship of borrowers relevant to the application using the drop down list. Select appropriate Partner relationship and no. of dependants if applicable.
C83: Actual Living Expenses: enter monthly declared living expenses
C85: 8. ASSESSMENT RESULT : Important messages will display here along with the Assessment Result; Servicing Met, Servicing Refer or Servicing Not Met.

Sheet Overview (hidden)
B2: Spreadsheet Name | G2: Gateway Commercial Calculator
B4: Storage Location | G4: Authorised Risk - Capacity Calculators
B6: Spreadsheet Owner Name / Position | G6: Senior Manager, Credit and Operational Risk
B8: Senior Manager Name / Position | G8: Senior Manager, Credit and Operational Risk
B10: Department | G10: Credit and Operational Risk
B12: Purpose of the Spreadsheet | G12: Capacity calculation for commercial loans
B14: Major EUC | G14: Yes
B16: Level of Confidentiality | G16: Internal and broker use
B18: Security / Backup | G18: System backup
B20: Inputs | G20: Credit policy, HEM, tax rates, interest rates, customer data
B22: Outputs | G22: DSR
B24: Controls | G24: Calculator definitions and management procedure Change register Calculators are reviewed by before release The spreadsheets are password protected so no unauthorised changes can occur.
B26: Version Number | G26: 2022.4
B28: Last Annual Review
B30: Latest Changes | G30: Released 30/11/2021 1/2/2022 HEM, location categories 1/6/2022 updated HEM, location categories, margin reduced to 2.5% 4/8/2022 minor changes to field names 26/5/2023 HEM, repayment of existing liabilities, introduced comm floor rate 29/9/2023 HEM error message that I/O term must equal loan term 8/3/2024 HEM, PL rate
